fUSD/lending_fUSD_20250603
["ID","MTS","AMOUNT","RATE_DAILY","PERIOD"]
[364092091,1748994668279,-1283.3,0.0003589,7]
[364092092,1748994668288,-460.0,0.0003589,7]
[364092093,1748994668297,-889.62,0.0003589,7]
[364092094,1748994668307,-460.0,0.0003589,7]
[364092095,1748994668316,-1435.27,0.0003589,7]
[364092096,1748994668326,-10432.59,0.0003589,7]
[364092097,1748994668335,-460.0,0.0003589,7]
[364092098,1748994668345,-1241.05,0.0003589,7]
[364092099,1748994668354,-971.37398736,0.0003589,120]
[364092100,1748994668364,-361.85637277,0.0003589,7]
[364092101,1748994668373,-1370.82,0.0003589,7]
[364092102,1748994668382,-973.86,0.0003589,7]
[364092103,1748994668392,-1224.14,0.0003589,7]
[364092104,1748994668401,-460.0,0.0003589,7]
[364092105,1748994668411,-460.0,0.0003589,7]
[364092106,1748994668420,-465.12,0.0003589,7]
[364092107,1748994668430,-460.0,0.0003589,7]
[364092108,1748994668439,-460.0,0.0003589,7]
[364092109,1748994668449,-460.0,0.0003589,7]
[364092110,1748994668458,-3135.25,0.0003589,7]
[364092111,1748994668467,-460.0,0.0003589,7]
[364092112,1748994668476,-460.0,0.0003589,7]
[364092113,1748994668486,-867.12,0.0003589,7]
[364092114,1748994668495,-819.61,0.0003589,7]
[364092115,1748994668504,-14165.34,0.0003589,7]
[364092116,1748994668513,-350.00050958,0.0003589,7]
[364092117,1748994668523,-911.03,0.0003589,7]
[364092118,1748994668532,-889.51,0.0003589,7]
[364092119,1748994668541,-460.0,0.0003589,7]
[364092120,1748994668550,-460.0,0.0003589,7]
[364092121,1748994668559,-460.0,0.0003589,7]
[364092122,1748994668568,-460.0,0.0003589,7]
[364092123,1748994668577,-639.21,0.0003589,7]
[364092124,1748994668588,-698.68,0.0003589,7]
[364092125,1748994668599,-460.0,0.0003589,7]
[364092126,1748994668608,-4113.83,0.0003589,7]
[364092127,1748994668618,-460.0,0.0003589,7]
[364092128,1748994668627,-460.0,0.0003589,7]
[364092129,1748994668638,-1026.23,0.0003589,7]
[364092130,1748994668647,-460.0,0.0003589,7]
[364092131,1748994668656,-460.0,0.0003589,7]
[364092132,1748994668667,-473.64,0.0003589,7]
[364092133,1748994668677,-874.27,0.0003589,7]
[364092134,1748994668686,-460.0,0.0003589,7]
[364092135,1748994668695,-43870.88,0.0003589,7]
[364092136,1748994668704,-466.84,0.0003589,7]
[364092137,1748994668714,-472.8,0.0003589,7]
[364092138,1748994668723,-460.0,0.0003589,7]
[364092139,1748994668733,-2621.3,0.0003589,7]
[364092140,1748994668743,-460.0,0.0003589,7]
[364092141,1748994668753,-475.9,0.0003589,7]
[364092142,1748994668762,-3646.19,0.0003589,7]
[364092143,1748994668771,-761.61,0.0003589,7]
[364092144,1748994668781,-460.0,0.0003589,7]
[364092145,1748994668790,-460.0,0.0003589,7]
[364092146,1748994668799,-1134.73,0.0003589,7]
[364092147,1748994668809,-460.0,0.0003589,7]
[364092148,1748994668819,-460.0,0.0003589,7]
[364092149,1748994668829,-300.0,0.0003589,7]
[364092150,1748994668838,-460.0,0.0003589,7]
[364092151,1748994668847,-460.0,0.0003589,7]
[364092152,1748994668857,-5312.37,0.0003589,7]
[364092153,1748994668866,-2101.24,0.0003589,7]
[364092154,1748994668876,-340.93272118,0.0003589,7]
[364092155,1748994668885,-1537.96,0.0003589,7]
[364092156,1748994668895,-958.65,0.0003589,7]
[364092157,1748994668904,-460.0,0.0003589,7]
[364092158,1748994668914,-1662.81,0.0003589,7]
[364092159,1748994668923,-579.87,0.0003589,7]
[364092160,1748994668932,-460.0,0.0003589,7]
[364092161,1748994668942,-460.0,0.0003589,7]
[364092162,1748994668952,-475.54,0.0003589,7]
[364092163,1748994668961,-237121.24,0.0003589,7]
[364092164,1748994668970,-885.76,0.0003589,7]
[364092165,1748994668979,-604.53,0.0003589,7]
[364092166,1748994668988,-15274.62,0.0003589,7]
[364092167,1748994668998,-1131.16,0.0003589,7]
[364092168,1748994669007,-611.33,0.0003589,7]
[364092169,1748994669016,-460.0,0.0003589,7]
[364092170,1748994669025,-675.82,0.0003589,7]
[364092171,1748994669035,-666.72,0.0003589,7]
[364092172,1748994669044,-281.68224759,0.0003589,7]
[364092173,1748994669053,-460.0,0.0003589,7]
[364092174,1748994669063,-523.31,0.0003589,7]
[364092175,1748994669072,-623.19,0.0003589,7]
[364092176,1748994669083,-965.94,0.0003589,7]
[364092177,1748994669092,-530.53,0.0003589,7]
[364092178,1748994669101,-460.0,0.0003589,7]
[364092179,1748994669111,-1764.66,0.0003589,7]
[364092180,1748994669120,-460.0,0.0003589,7]
[364092181,1748994669129,-909.62,0.0003589,7]
[364092182,1748994669138,-460.0,0.0003589,7]
[364092183,1748994669147,-460.0,0.0003589,7]
[364092184,1748994669159,-9364.81,0.0003589,7]
[364092185,1748994669170,-1171.65,0.0003589,7]
[364092186,1748994669180,-384.74951689,0.0003589,7]
[364092187,1748994669191,-460.0,0.0003589,7]
[364092188,1748994669201,-1503.54,0.0003589,7]
[364092189,1748994669212,-969.15,0.0003589,7]
[364092190,1748994669223,-460.0,0.0003589,7]
[364092191,1748994669233,-460.0,0.0003589,7]
[364092192,1748994669242,-460.0,0.0003589,7]
[364092193,1748994669254,-466.08,0.0003589,7]
[364092194,1748994669264,-420.0,0.0003589,7]
[364092195,1748994669274,-2172.17,0.0003589,7]
[364092196,1748994669284,-845.78,0.0003589,7]
[364092197,1748994669294,-460.0,0.0003589,7]
[364092198,1748994669304,-460.0,0.0003589,7]
[364092199,1748994669313,-460.0,0.0003589,7]
[364092200,1748994669322,-3039.28,0.0003589,7]
[364092201,1748994669334,-1989.91,0.0003589,7]
[364092202,1748994669343,-3696.12,0.0003589,7]
[364092203,1748994669353,-3088.67,0.0003589,7]
[364092204,1748994669362,-460.0,0.0003589,7]
[364092205,1748994669372,-813.34,0.0003589,7]
[364092206,1748994669382,-460.0,0.0003589,7]
[364092207,1748994669393,-2035.54,0.0003589,7]
[364092208,1748994669402,-460.0,0.0003589,7]
[364092209,1748994669412,-460.0,0.0003589,7]
[364092210,1748994669422,-2006.7,0.0003589,7]
[364092211,1748994669431,-460.0,0.0003589,7]
[364092212,1748994669441,-460.0,0.0003589,7]
[364092213,1748994669450,-460.0,0.0003589,7]
[364092214,1748994669459,-460.0,0.0003589,7]
[364092215,1748994669469,-460.0,0.0003589,7]
[364092216,1748994669479,-3134.91,0.0003589,7]
[364092217,1748994669489,-2083.82,0.0003589,7]
[364092218,1748994669499,-460.0,0.0003589,7]
[364092219,1748994669509,-2840.59,0.0003589,7]
[364092220,1748994669519,-460.0,0.0003589,7]
[364092221,1748994669528,-916.32,0.0003589,7]
[364092222,1748994669538,-853.43,0.0003589,7]
[364092223,1748994669548,-460.0,0.0003589,7]
[364092224,1748994669557,-570.47,0.0003589,7]
[364092225,1748994669568,-477.15,0.0003589,7]
[364092226,1748994669579,-744.65,0.0003589,7]
[364092227,1748994669590,-3052.91,0.0003589,7]
[364092228,1748994669600,-460.0,0.0003589,7]
[364092229,1748994669610,-460.0,0.0003589,7]
[364092230,1748994669619,-460.0,0.0003589,7]
[364092231,1748994669628,-460.0,0.0003589,7]
[364092232,1748994669639,-392.94744446,0.0003589,7]
[364092233,1748994669649,-461.5,0.0003589,7]
[364092234,1748994669659,-460.0,0.0003589,7]
[364092235,1748994669671,-7118.51,0.0003589,7]
[364092236,1748994669681,-460.0,0.0003589,7]
[364092237,1748994669691,-460.0,0.0003589,7]
[364092238,1748994669700,-12342.86,0.0003589,7]
[364092239,1748994669710,-460.0,0.0003589,7]
[364092240,1748994669720,-1854.92,0.0003589,7]
[364092241,1748994669730,-460.0,0.0003589,7]
[364092242,1748994669741,-462.11,0.0003589,7]
[364092243,1748994669751,-1875.58,0.0003589,7]
[364092244,1748994669761,-491.99985461,0.0003589,7]
[364092245,1748994669771,-2065.43,0.0003589,7]
[364092246,1748994669781,-460.0,0.0003589,7]
[364092247,1748994669791,-607.69,0.0003589,7]
[364092248,1748994669801,-460.0,0.0003589,7]
[364092249,1748994669811,-460.0,0.0003589,7]
[364092250,1748994669821,-460.0,0.0003589,7]
[364092251,1748994669834,-17310.23,0.0003589,7]
[364092252,1748994669844,-460.0,0.0003589,7]
[364092253,1748994669855,-460.0,0.0003589,7]
[364092254,1748994669865,-460.0,0.0003589,7]
[364092255,1748994669876,-584.16,0.0003589,7]
[364092256,1748994669886,-3131.27,0.0003589,7]
[364092257,1748994669896,-460.0,0.0003589,7]
[364092258,1748994669907,-460.0,0.0003589,7]
[364092259,1748994669917,-4346.06,0.0003589,7]
[364092260,1748994669927,-460.0,0.0003589,7]
[364092261,1748994669937,-460.0,0.0003589,7]
[364092262,1748994669947,-11927.51,0.0003589,7]
[364092263,1748994669957,-460.0,0.0003589,7]
[364092264,1748994669967,-460.0,0.0003589,7]
[364092265,1748994669977,-460.0,0.0003589,7]
[364092266,1748994669990,-460.0,0.0003589,7]
[364092267,1748994670000,-460.0,0.0003589,7]
[364092268,1748994670010,-3676.62,0.0003589,7]
[364092269,1748994670020,-713.37,0.0003589,7]
[364092270,1748994670030,-460.0,0.0003589,7]
[364092271,1748994670040,-3527.73,0.0003589,7]
[364092272,1748994670050,-8913.82,0.0003589,7]
[364092273,1748994670060,-464.05,0.0003589,7]
[364092274,1748994670070,-383.97681021,0.0003589,7]
[364092275,1748994670081,-1234.37,0.0003589,7]
[364092276,1748994670091,-460.0,0.0003589,7]
[364092277,1748994670102,-785.34,0.0003589,7]
[364092278,1748994670112,-1444.84,0.0003589,60]
[364092279,1748994670122,-460.0,0.0003589,7]
[364092280,1748994670132,-1124.09,0.0003589,7]
[364092281,1748994670143,-460.0,0.0003589,7]
[364092282,1748994670152,-202.32232946,0.0003589,7]
[364092283,1748994670162,-817.59,0.0003589,7]
[364092284,1748994670172,-1027.33,0.0003589,7]
[364092285,1748994670183,-460.0,0.0003589,7]
[364092286,1748994670194,-3447.82,0.0003589,7]
[364092287,1748994670206,-460.0,0.0003589,7]
[364092288,1748994670216,-460.0,0.0003589,7]
[364092289,1748994670227,-460.0,0.0003589,7]
[364092290,1748994670237,-2118.95,0.0003589,7]
[364092291,1748994670247,-1050.71,0.0003589,7]
[364092292,1748994670256,-460.0,0.0003589,7]
[364092293,1748994670266,-786.08,0.0003589,7]
[364092294,1748994670279,-558.38,0.0003589,7]
[364092295,1748994670289,-380.0,0.0003589,7]
[364092296,1748994670300,-460.0,0.0003589,7]
[364092297,1748994670310,-460.0,0.0003589,7]
[364092298,1748994670321,-4015.22,0.0003589,7]
[364092299,1748994670332,-460.0,0.0003589,7]
[364092300,1748994670342,-2000.0,0.0003589,7]
[364092301,1748994670352,-460.0,0.0003589,7]
[364092302,1748994670362,-460.0,0.0003589,7]
[364092303,1748994670372,-460.0,0.0003589,7]
[364092304,1748994670383,-460.0,0.0003589,7]
[364092305,1748994670393,-460.0,0.0003589,7]
[364092306,1748994670403,-460.0,0.0003589,7]
[364092307,1748994670414,-460.0,0.0003589,7]
[364092308,1748994670424,-804.52,0.0003589,7]
[364092309,1748994670434,-891.14,0.0003589,7]
[364092310,1748994670445,-2460.52,0.0003589,7]
[364092311,1748994670455,-460.0,0.0003589,7]
[364092312,1748994670466,-817.32,0.0003589,7]
[364092313,1748994670476,-1555.46,0.0003589,7]
[364092314,1748994670487,-460.0,0.0003589,7]
[364092315,1748994670497,-460.0,0.0003589,7]
[364092316,1748994670508,-460.0,0.0003589,7]
[364092317,1748994670519,-2883.85,0.0003589,7]
[364092318,1748994670529,-5420.79,0.0003589,7]
[364092319,1748994670539,-460.0,0.0003589,7]
[364092320,1748994670550,-8396.9,0.0003589,7]
[364092321,1748994670560,-460.0,0.0003589,7]
[364092322,1748994670570,-1068.15,0.0003589,7]
[364092323,1748994670581,-460.0,0.0003589,7]
[364092324,1748994670594,-460.0,0.0003589,7]
[364092325,1748994670604,-407.45502079,0.0003589,7]
[364092326,1748994670615,-422.35625185,0.0003589,7]
[364092327,1748994670624,-1701.99,0.0003589,7]
[364092328,1748994670635,-460.0,0.0003589,7]
[364092329,1748994670645,-460.0,0.0003589,7]
[364092330,1748994670656,-950.75,0.0003589,7]
[364092331,1748994670667,-2465.8,0.0003589,7]
[364092332,1748994670679,-460.0,0.0003589,7]
[364092333,1748994670689,-460.0,0.0003589,7]
[364092334,1748994670700,-1000.92,0.0003589,7]
[364092335,1748994670711,-460.0,0.0003589,7]
[364092336,1748994670722,-460.0,0.0003589,7]
[364092337,1748994670734,-508.0,0.0003589,7]
[364092338,1748994670745,-782.29,0.0003589,7]
[364092339,1748994670756,-1252.95,0.0003589,7]
[364092340,1748994670767,-460.0,0.0003589,7]
[364092341,1748994670778,-460.0,0.0003589,7]
[364092342,1748994670788,-9279.85,0.0003589,7]
[364092343,1748994670799,-2173.64,0.0003589,7]
[364092344,1748994670810,-460.0,0.0003589,7]
[364092345,1748994670821,-460.0,0.0003589,7]
[364092346,1748994670835,-3683.27,0.0003589,7]
[364092347,1748994670845,-460.0,0.0003589,7]
[364092348,1748994670855,-1863.85,0.0003589,7]
[364092349,1748994670866,-788.24,0.0003589,7]
[364092350,1748994670877,-2679.73,0.0003589,7]
[364092351,1748994670888,-2675.72,0.0003589,7]
[364092352,1748994670898,-460.0,0.0003589,7]
[364092353,1748994670909,-597.67,0.0003589,7]
[364092354,1748994670920,-460.0,0.0003589,7]
[364092355,1748994670930,-25142.22,0.0003589,7]
[364092356,1748994670941,-460.0,0.0003589,7]
[364092357,1748994670951,-460.0,0.0003589,7]
[364092358,1748994670962,-529.58,0.0003589,7]
[364092359,1748994670972,-460.0,0.0003589,7]
[364092360,1748994670983,-460.0,0.0003589,7]
[364092361,1748994670993,-460.0,0.0003589,7]
[364092362,1748994671004,-460.0,0.0003589,7]
[364092363,1748994671015,-460.0,0.0003589,7]
[364092364,1748994671026,-2014.16,0.0003589,7]
[364092365,1748994671036,-4523.4,0.0003589,7]
[364092366,1748994671048,-460.0,0.0003589,7]
[364092367,1748994671059,-698.42,0.0003589,7]
[364092368,1748994671070,-460.0,0.0003589,7]
[364092369,1748994671082,-1402.73,0.0003589,7]
[364092370,1748994671093,-460.0,0.0003589,7]
[364092371,1748994671103,-460.0,0.0003589,7]
[364092372,1748994671113,-460.0,0.0003589,7]
[364092373,1748994671124,-1731.77,0.0003589,7]
[364092374,1748994671134,-357.25767692,0.0003589,7]
[364092375,1748994671145,-460.0,0.0003589,7]
[364092376,1748994671156,-460.0,0.0003589,7]
[364092377,1748994671167,-1093.03,0.0003589,7]
[364092378,1748994671177,-1957.95,0.0003589,7]
[364092379,1748994671188,-460.0,0.0003589,7]
[364092380,1748994671200,-460.0,0.0003589,7]
[364092381,1748994671211,-460.0,0.0003589,7]
[364092382,1748994671221,-460.0,0.0003589,7]
[364092383,1748994671232,-460.0,0.0003589,7]
[364092384,1748994671243,-460.0,0.0003589,7]
[364092385,1748994671253,-355.38845914,0.0003589,7]
[364092386,1748994671263,-460.0,0.0003589,7]
[364092387,1748994671273,-460.0,0.0003589,7]
[364092388,1748994671283,-13072.82,0.0003589,7]
[364092389,1748994671293,-460.0,0.0003589,7]
[364092390,1748994671305,-1853.79,0.0003589,7]
[364092391,1748994671315,-460.0,0.0003589,7]
[364092392,1748994671327,-683.89,0.0003589,7]
[364092393,1748994671338,-557.39,0.0003589,7]
[364092394,1748994671348,-460.0,0.0003589,7]
[364092395,1748994671357,-460.0,0.0003589,7]
[364092396,1748994671368,-460.0,0.0003589,7]
[364092397,1748994671378,-460.0,0.0003589,7]
[364092398,1748994671388,-3074.76,0.0003589,7]
[364092399,1748994671399,-460.0,0.0003589,7]
[364092400,1748994671409,-460.0,0.0003589,7]
[364092401,1748994671419,-1398.47,0.0003589,7]
[364092402,1748994671429,-460.0,0.0003589,7]
[364092403,1748994671440,-15859.8,0.0003589,7]
[364092404,1748994671451,-560.01,0.0003589,7]
[364092405,1748994671461,-460.0,0.0003589,7]
[364092406,1748994671472,-407.46001544,0.0003589,7]
[364092407,1748994671482,-4942.78,0.0003589,7]
[364092408,1748994671493,-460.0,0.0003589,7]
[364092409,1748994671503,-460.0,0.0003589,7]
[364092410,1748994671514,-460.0,0.0003589,7]
[364092411,1748994671524,-460.0,0.0003589,7]
[364092412,1748994671534,-460.0,0.0003589,7]
[364092413,1748994671545,-460.0,0.0003589,7]
[364092414,1748994671555,-460.0,0.0003589,7]
[364092415,1748994671565,-1294.69,0.0003589,7]
[364092416,1748994671576,-460.0,0.0003589,7]
[364092417,1748994671590,-1435.58,0.0003589,7]
[364092418,1748994671600,-460.0,0.0003589,7]
[364092419,1748994671611,-460.0,0.0003589,7]
[364092420,1748994671622,-460.0,0.0003589,7]
[364092421,1748994671634,-460.0,0.0003589,7]
[364092422,1748994671644,-460.0,0.0003589,7]
[364092423,1748994671654,-3988.92,0.0003589,7]
[364092424,1748994671665,-811.07,0.0003589,7]
[364092425,1748994671675,-460.0,0.0003589,7]
[364092426,1748994671686,-382.73402181,0.0003589,7]
[364092427,1748994671696,-821.08,0.0003589,7]
[364092428,1748994671707,-460.0,0.0003589,7]
[364092429,1748994671717,-727.25,0.0003589,7]
[364092430,1748994671728,-460.0,0.0003589,7]
[364092431,1748994671738,-425.12482261,0.0003589,7]
[364092432,1748994671749,-460.0,0.0003589,7]
[364092433,1748994671759,-460.0,0.0003589,7]
[364092434,1748994671770,-1869.08,0.0003589,7]
[364092435,1748994671780,-460.0,0.0003589,7]
[364092436,1748994671791,-667.37,0.0003589,7]
[364092437,1748994671801,-460.0,0.0003589,7]
[364092438,1748994671812,-936.81,0.0003589,7]
[364092439,1748994672158,-460.0,0.0003589,7]
[364092440,1748994672171,-460.0,0.0003589,7]
[364092441,1748994672180,-460.0,0.0003589,7]
[364092442,1748994672190,-386.34166713,0.0003589,7]
[364092443,1748994672202,-611.89,0.0003589,7]
[364092444,1748994672211,-1505.67,0.0003589,7]
[364092445,1748994672222,-460.0,0.0003589,7]
[364092446,1748994672232,-10024.22,0.0003589,7]
[364092447,1748994672242,-1698.47,0.0003589,7]
[364092448,1748994672253,-460.0,0.0003589,7]
[364092449,1748994672264,-488.3,0.0003589,7]
[364092450,1748994672274,-545.56286033,0.0003589,7]
[364092451,1748994672285,-4087.59,0.0003589,7]
[364092452,1748994672295,-460.0,0.0003589,7]
[364092453,1748994672305,-460.0,0.0003589,7]
[364092454,1748994672317,-460.0,0.0003589,7]
[364092455,1748994672328,-460.0,0.0003589,7]
[364092456,1748994672338,-460.0,0.0003589,7]
[364092457,1748994672347,-380.0,0.0003589,2]
[364092458,1748994672357,-460.0,0.0003589,7]
[364092459,1748994672367,-460.0,0.0003589,7]
[364092460,1748994672378,-490.0,0.0003589,7]
[364092461,1748994672388,-1080.55,0.0003589,7]
[364092462,1748994672400,-460.0,0.0003589,7]
[364092463,1748994672412,-11758.41,0.0003589,7]
[364092464,1748994672422,-460.0,0.0003589,7]
[364092465,1748994672435,-460.0,0.0003589,7]
[364092466,1748994672445,-235.51446713,0.0003589,7]
[364092467,1748994672455,-460.0,0.0003589,7]
[364092468,1748994672466,-619.24,0.0003589,7]
[364092469,1748994672477,-460.0,0.0003589,7]
[364092470,1748994672487,-460.0,0.0003589,7]
[364092471,1748994672497,-420.0,0.0003589,7]
[364092472,1748994672507,-601.54,0.0003589,7]
[364092473,1748994672516,-20724.52,0.0003589,7]
[364092474,1748994672527,-460.0,0.0003589,7]
[364092475,1748994672536,-565.92794631,0.0003589,7]
[364092476,1748994672546,-460.0,0.0003589,7]
[364092477,1748994672555,-460.0,0.0003589,7]
[364092478,1748994672566,-460.0,0.0003589,7]
[364092479,1748994672575,-2139.36,0.0003589,7]
[364092480,1748994672587,-460.0,0.0003589,7]
[364092481,1748994672598,-460.0,0.0003589,7]
[364092482,1748994672608,-460.0,0.0003589,7]
[364092483,1748994672618,-1214.1,0.0003589,7]
[364092484,1748994672627,-1608.73,0.0003589,7]
[364092485,1748994672637,-1514.44,0.0003589,7]
[364092486,1748994672647,-620.21,0.0003589,7]
[364092487,1748994672656,-893.17,0.0003589,7]
[364092488,1748994672667,-886.72,0.0003589,7]
[364092489,1748994672677,-3193.08,0.0003589,7]
[364092490,1748994672687,-460.0,0.0003589,7]
[364092491,1748994672696,-460.0,0.0003589,7]
[364092492,1748994672705,-1903.68,0.0003589,7]
[364092493,1748994672715,-5552.76,0.0003589,7]
[364092494,1748994672724,-460.0,0.0003589,7]
[364092495,1748994672734,-493.44,0.0003589,7]
[364092496,1748994672744,-752.92,0.0003589,7]
[364092497,1748994672754,-460.0,0.0003589,7]
[364092498,1748994672763,-460.0,0.0003589,7]
[364092499,1748994672773,-3148.43,0.0003589,7]
[364092500,1748994672783,-460.0,0.0003589,7]
[364092501,1748994672792,-26074.69,0.0003589,7]
[364092502,1748994672802,-460.0,0.0003589,7]
[364092503,1748994672813,-712.17,0.0003589,7]
[364092504,1748994672822,-1450.47,0.0003589,7]
[364092505,1748994672833,-460.0,0.0003589,7]
[364092506,1748994672843,-1549.5,0.0003589,7]
[364092507,1748994672853,-7066.28,0.0003589,7]
[364092508,1748994672863,-460.0,0.0003589,7]
[364092509,1748994672872,-460.0,0.0003589,7]
[364092510,1748994672882,-1373.8,0.0003589,7]
[364092511,1748994672892,-4784.39,0.0003589,7]
[364092512,1748994672902,-460.0,0.0003589,7]
[364092513,1748994672911,-910.9,0.0003589,7]
[364092514,1748994672921,-1534.49,0.0003589,7]
[364092515,1748994672932,-871.84,0.0003589,7]
[364092516,1748994672942,-1510.45,0.0003589,7]
[364092517,1748994672953,-460.0,0.0003589,2]
[364092518,1748994672963,-577.74,0.0003589,7]
[364092519,1748994672972,-15908.02,0.0003589,7]
[364092520,1748994672981,-460.0,0.0003589,7]
[364092521,1748994672991,-460.0,0.0003589,7]
[364092522,1748994673002,-460.0,0.0003589,7]
[364092523,1748994673011,-981.92,0.0003589,7]
[364092524,1748994673022,-290.92243863,0.0003589,7]
[364092525,1748994673032,-380.0,0.0003589,7]
[364092526,1748994673041,-14704.2894741,0.0003589,7]
[364092527,1748994673790,-683.63255146,0.0003589,7]
[364092528,1748994673871,-300.0,0.0003561,7]
[364092529,1748994673881,-746.33575712,0.0003589,7]
[364092530,1748994673891,-290.1505,0.0003589,7]
[364092531,1748994673903,-33295.27698002,0.0003589,7]
[364092532,1748994674748,-259.79,0.00035616,7]
[364092533,1748994674760,-200.21,0.00035616,7]
[364092534,1748994674770,-299.79,0.0003589,7]
[364092535,1748994674801,-3398.5647373,0.0003589,7]
[364092536,1748994674811,-460.0,0.0003589,7]
[364092537,1748994674820,-2392.34,0.0003589,7]
[364092538,1748994674832,-460.0,0.0003589,7]
[364092539,1748994674843,-460.0,0.0003589,7]
[364092540,1748994674852,-460.0,0.0003589,7]
[364092541,1748994674862,-957.7,0.0003589,7]
[364092542,1748994674872,-460.0,0.0003589,7]
[364092543,1748994674882,-460.0,0.0003589,7]
[364092544,1748994674892,-460.0,0.0003589,7]
[364092545,1748994674902,-460.0,0.0003589,7]
[364092546,1748994674912,-4432.44,0.0003589,7]
[364092547,1748994674922,-460.0,0.0003589,7]
[364092548,1748994674932,-460.0,0.0003589,7]
[364092549,1748994674942,-460.0,0.0003589,7]
[364092550,1748994674951,-1238.15,0.0003589,7]
[364092551,1748994674960,-460.0,0.0003589,7]
[364092552,1748994674970,-588.15,0.0003589,7]
[364092553,1748994674979,-460.0,0.0003589,7]
[364092554,1748994674989,-460.0,0.0003589,7]
[364092555,1748994674999,-460.0,0.0003589,7]
[364092556,1748994675008,-3113.29,0.0003589,7]
[364092557,1748994675019,-460.0,0.0003589,7]
[364092558,1748994675028,-460.0,0.0003589,7]
[364092559,1748994675038,-2979.45,0.0003589,7]
[364092560,1748994675047,-6682.63,0.0003589,7]
[364092561,1748994675057,-546.77,0.0003589,7]
[364092562,1748994675067,-1460.46,0.0003589,7]
[364092563,1748994675077,-460.0,0.0003589,7]
[364092564,1748994675090,-3790.87,0.0003589,7]
[364092565,1748994675099,-460.0,0.0003589,7]
[364092566,1748994675110,-300.0,0.000359,13]
[364092567,1748994675119,-500.0,0.00035917,60]
[364092568,1748994675129,-708.65474677,0.00035927,8]
[364092569,1748994675139,-150.0,0.00035941,2]
[364092570,1748994675148,-500.0,0.00035945,60]
[364092571,1748994675158,-150.0,0.00035949,2]
[364092572,1748994675168,-500.0,0.00035972,60]
[364092573,1748994675177,-500.0,0.00036,60]
[364092574,1748994675187,-857.08858,0.0003602,2]
[364092575,1748994675197,-500.0,0.00036027,60]
[364092576,1748994675207,-500.0,0.00036054,60]
[364092577,1748994675218,-19832.41013981,0.00036062,2]
[364092578,1748994675227,-500.0,0.00036082,60]
[364092579,1748994675236,-500.0,0.00036109,60]
[364092580,1748994675246,-708.65474677,0.00036132,9]
[364092581,1748994675255,-500.0,0.00036137,60]
[364092582,1748994675265,-151.0,0.0003615,9]
[364092583,1748994675276,-59337.01381034,0.00036156,21]
[364092584,1748994776740,250.0,0.00019,2]
[364092586,1748994814206,151.47,0.00013699,2]
[364092588,1748995100720,1000.0,0.00032876,120]
[364092589,1748995100963,1000.0,0.00032904,120]
[364092590,1748995101214,1000.0,0.00032931,120]
[364092591,1748995101489,460.76,0.00032958,120]
[364092592,1748995174342,500.0,0.00035616,120]